Workbook

Sheet 주간전력수급계획
B1: 주 간 전 력 수 급 계 획
B2: ㅇ 대상기간 : 6.1(토) ~ 6.9(일) | I2: 수급계획팀 강민구 (061-330-8619)
B4: 회원사 | C4: 연료원 | D4: 발전기명 | E4: 설비용량[MW] | F4: 시작일 | H4: 종료일 | J4: 일수 | K4: 비고
B5: 한국수력원자력(주) | C5: 수력 | D5: 의암#1 | E5: 24 | F5: 2024-06-03 | G5: 10:00:00 | H5: 2024-06-03 | I5: 12:00:00 | J5: =H5-F5+1 -> 1
B6: 한국수력원자력(주) | C6: 수력 | D6: 의암#2 | E6: 24 | F6: 2024-06-03 | G6: 10:00:00 | H6: 2024-06-03 | I6: 12:00:00 | J6: =H6-F6+1 -> 1
B7: 한국수력원자력(주) | C7: 수력 | D7: 춘천#2 | E7: 31.14 | F7: 2024-03-11 | G7: 09:00:00 | H7: 2024-07-09 | I7: 00:00:00 | J7: =H7-F7+1 -> 121
B8: 한국수력원자력(주) | C8: 수력 | D8: 팔당#4 | E8: 30 | F8: 2024-06-03 | G8: 09:00:00 | H8: 2024-06-11 | I8: 00:00:00 | J8: =H8-F8+1 -> 9
B9: 한국수력원자력(주) | C9: 수력 | D9: 화천#2 | E9: 27 | F9: 2024-06-03 | G9: 09:00:00 | H9: 2024-06-03 | I9: 23:00:00 | J9: =H9-F9+1 -> 1
B10: 한국수력원자력(주) | C10: 수력 | D10: 화천#4 | E10: 27 | F10: 2024-03-18 | G10: 00:00:00 | H10: 2024-06-25 | I10: 00:00:00 | J10: =H10-F10+1 -> 100
B11: 한국수자원공사 | C11: 수력 | D11: 소양강#2 | E11: 100 | F11: 2024-06-05 | G11: 13:00:00 | H11: 2024-06-05 | I11: 17:00:00 | J11: =H11-F11+1 -> 1
B12: 한국수자원공사 | C12: 수력 | D12: 안동#1 | E12: 45 | F12: 2024-03-18 | G12: 00:00:00 | H12: 2024-06-14 | I12: 23:59:00 | J12: =H12-F12+1 -> 89
B13: 한국수자원공사 | C13: 수력 | D13: 합천#2 | E13: 50 | F13: 2024-03-05 | G13: 09:00:00 | H13: 2024-06-21 | I13: 18:00:00 | J13: =H13-F13+1 -> 109
B14: 한국수력원자력(주) | C14: 양수 | D14: 무주#1 | E14: 300 | F14: 2024-04-15 | G14: 00:00:00 | H14: 2024-09-14 | I14: 00:00:00 | J14: =H14-F14+1 -> 153
B15: 한국수력원자력(주) | C15: 양수 | D15: 무주#2 | E15: 300 | F15: 2024-06-03 | G15: 14:00:00 | H15: 2024-06-03 | I15: 18:00:00 | J15: =H15-F15+1 -> 1
B16: 한국수력원자력(주) | C16: 양수 | D16: 산청#1 | E16: 350 | F16: 2024-05-30 | G16: 00:00:00 | H16: 2024-08-25 | I16: 00:00:00 | J16: =H16-F16+1 -> 88
B17: 한국수력원자력(주) | C17: 양수 | D17: 양양#2 | E17: 250 | F17: 2024-05-25 | G17: 00:00:00 | H17: 2024-06-01 | I17: 00:00:00 | J17: =H17-F17+1 -> 8
B18: 한국수력원자력(주) | C18: 양수 | D18: 양양#4 | E18: 250 | F18: 2024-06-03 | G18: 09:00:00 | H18: 2025-01-22 | I18: 00:00:00 | J18: =H18-F18+1 -> 234
B19: 한국수력원자력(주) | C19: 양수 | D19: 예천#2 | E19: 400 | F19: 2024-05-29 | G19: 08:00:00 | H19: 2024-07-21 | I19: 20:00:00 | J19: =H19-F19+1 -> 54
B20: 한국수력원자력(주) | C20: 양수 | D20: 청평양수#1 | E20: 200 | F20: 2024-05-07 | G20: 00:00:00 | H20: 2024-08-05 | I20: 00:00:00 | J20: =H20-F20+1 -> 91
B21: 한국수력원자력(주) | C21: 양수 | D21: 청평양수#2 | E21: 200 | F21: 2024-06-03 | G21: 00:00:00 | H21: 2024-06-06 | I21: 00:00:00 | J21: =H21-F21+1 -> 4
B22: 씨지앤대산전력 주식회사 | C22: 유류 | D22: 대산ST#1 | E22: 91 | F22: 2024-06-09 | G22: 09:00:00 | H22: 2024-06-23 | I22: 18:00:00 | J22: =H22-F22+1 -> 15
B23: 한국남부발전(주) | C23: 유류 | D23: 남제주#2 | E23: 100 | F23: 2024-04-28 | G23: 00:00:00 | H23: 2024-06-17 | I23: 00:00:00 | J23: =H23-F23+1 -> 51
B24: 한국중부발전(주) | C24: 유류 | D24: 제주기력#3 | E24: 75 | F24: 2024-04-23 | G24: 00:00:00 | H24: 2024-07-01 | I24: 00:00:00 | J24: =H24-F24+1 -> 70
B25: 씨지앤대산전력 주식회사 | C25: 유류 | D25: 대산GT#1 | E25: 93.7 | F25: 2024-06-09 | G25: 09:00:00 | H25: 2024-06-23 | I25: 18:00:00 | J25: =H25-F25+1 -> 15
B26: 씨지앤대산전력 주식회사 | C26: 유류 | D26: 대산GT#2 | E26: 93.7 | F26: 2024-06-09 | G26: 09:00:00 | H26: 2024-06-23 | I26: 18:00:00 | J26: =H26-F26+1 -> 15
B27: 씨지앤대산전력 주식회사 | C27: 유류 | D27: 대산GT#3 | E27: 93.7 | F27: 2024-06-09 | G27: 09:00:00 | H27: 2024-06-23 | I27: 18:00:00 | J27: =H27-F27+1 -> 15
B28: 씨지앤대산전력 주식회사 | C28: 유류 | D28: 대산GT#4 | E28: 93.7 | F28: 2024-06-09 | G28: 09:00:00 | H28: 2024-06-23 | I28: 18:00:00 | J28: =H28-F28+1 -> 15
B29: (주)지에스동해전력 | C29: 유연탄 | D29: 북평#2 | E29: 595 | F29: 2024-04-26 | G29: 00:00:00 | H29: 2024-06-15 | I29: 00:00:00 | J29: =H29-F29+1 -> 51
B30: 강릉에코파워(주) | C30: 유연탄 | D30: 강릉안인#1 | E30: 1040 | F30: 2024-04-03 | G30: 00:00:00 | H30: 2024-07-05 | I30: 23:59:00 | J30: =H30-F30+1 -> 94
B31: 고성그린파워 주식회사 | C31: 유연탄 | D31: 고성#2 | E31: 1040 | F31: 2024-05-23 | G31: 00:00:00 | H31: 2024-06-08 | I31: 00:00:00 | J31: =H31-F31+1 -> 17
B32: 한국남동발전(주) | C32: 유연탄 | D32: 삼천포#3 | E32: 560 | F32: 2024-06-03 | G32: 00:00:00 | H32: 2024-07-09 | I32: 00:00:00 | J32: =H32-F32+1 -> 37
B33: 한국남동발전(주) | C33: 유연탄 | D33: 삼천포#5 | E33: 500 | F33: 2024-04-17 | G33: 00:00:00 | H33: 2024-06-30 | I33: 00:00:00 | J33: =H33-F33+1 -> 75
B34: 한국남동발전(주) | C34: 유연탄 | D34: 여수#2 | E34: 328.6 | F34: 2024-05-13 | G34: 04:00:00 | H34: 2024-06-26 | I34: 04:00:00 | J34: =H34-F34+1 -> 45
B35: 한국남동발전(주) | C35: 유연탄 | D35: 영흥#1 | E35: 800 | F35: 2024-01-01 | G35: 00:00:00 | H35: 2025-07-01 | I35: 00:00:00 | J35: =H35-F35+1 -> 548
B36: 한국남동발전(주) | C36: 유연탄 | D36: 영흥#2 | E36: 800 | F36: 2024-01-01 | G36: 00:00:00 | H36: 2025-07-01 | I36: 00:00:00 | J36: =H36-F36+1 -> 548
B37: 한국남부발전(주) | C37: 유연탄 | D37: 삼척그린#1 | E37: 1022 | F37: 2024-04-01 | G37: 00:00:00 | H37: 2024-07-20 | I37: 00:00:00 | J37: =H37-F37+1 -> 111
B38: 한국남부발전(주) | C38: 유연탄 | D38: 하동#3 | E38: 500 | F38: 2024-03-06 | G38: 00:00:00 | H38: 2024-06-01 | I38: 00:00:00 | J38: =H38-F38+1 -> 88
B39: 한국남부발전(주) | C39: 유연탄 | D39: 하동#4 | E39: 500 | F39: 2024-05-13 | G39: 00:00:00 | H39: 2024-06-15 | I39: 00:00:00 | J39: =H39-F39+1 -> 34
B40: 한국남부발전(주) | C40: 유연탄 | D40: 하동#5 | E40: 500 | F40: 2024-05-31 | G40: 00:00:00 | H40: 2024-06-04 | I40: 00:00:00 | J40: =H40-F40+1 -> 5
B41: 한국동서발전(주) | C41: 유연탄 | D41: 당진#2 | E41: 500 | F41: 2023-12-01 | G41: 00:00:00 | H41: 2025-04-01 | I41: 00:00:00 | J41: =H41-F41+1 -> 488
B42: 한국동서발전(주) | C42: 유연탄 | D42: 당진#3 | E42: 500 | F42: 2023-09-08 | G42: 00:00:00 | H42: 2025-01-09 | I42: 00:00:00 | J42: =H42-F42+1 -> 490
B43: 한국동서발전(주) | C43: 유연탄 | D43: 당진#4 | E43: 500 | F43: 2024-04-29 | G43: 00:00:00 | H43: 2024-06-14 | I43: 00:00:00 | J43: =H43-F43+1 -> 47
B44: 한국동서발전(주) | C44: 유연탄 | D44: 당진#5 | E44: 500 | F44: 2024-04-22 | G44: 00:00:00 | H44: 2024-06-29 | I44: 00:00:00 | J44: =H44-F44+1 -> 69
B45: 한국동서발전(주) | C45: 유연탄 | D45: 당진#6 | E45: 500 | F45: 2024-04-29 | G45: 00:00:00 | H45: 2024-06-01 | I45: 00:00:00 | J45: =H45-F45+1 -> 34
B46: 한국동서발전(주) | C46: 유연탄 | D46: 당진#6 | E46: 500 | F46: 2024-06-03 | G46: 00:00:00 | H46: 2024-06-10 | I46: 00:00:00 | J46: =H46-F46+1 -> 8
B47: 한국동서발전(주) | C47: 유연탄 | D47: 당진#7 | E47: 500 | F47: 2024-06-05 | G47: 00:00:00 | H47: 2024-06-10 | I47: 00:00:00 | J47: =H47-F47+1 -> 6
B48: 한국동서발전(주) | C48: 유연탄 | D48: 당진#9 | E48: 1020 | F48: 2024-02-26 | G48: 00:00:00 | H48: 2024-06-20 | I48: 00:00:00 | J48: =H48-F48+1 -> 116
B49: 한국서부발전(주) | C49: 유연탄 | D49: 태안#2 | E49: 500 | F49: 2024-05-25 | G49: 00:00:00 | H49: 2024-07-08 | I49: 00:00:00 | J49: =H49-F49+1 -> 45
B50: 한국서부발전(주) | C50: 유연탄 | D50: 태안#5 | E50: 500 | F50: 2024-06-05 | G50: 09:00:00 | H50: 2024-06-10 | I50: 00:00:00 | J50: =H50-F50+1 -> 6
B51: 한국서부발전(주) | C51: 유연탄 | D51: 태안#6 | E51: 500 | F51: 2024-05-30 | G51: 09:00:00 | H51: 2024-06-06 | I51: 00:00:00 | J51: =H51-F51+1 -> 8
B52: 한국서부발전(주) | C52: 유연탄 | D52: 태안#7 | E52: 500 | F52: 2024-03-18 | G52: 00:00:00 | H52: 2024-06-21 | I52: 00:00:00 | J52: =H52-F52+1 -> 96
B53: 한국서부발전(주) | C53: 유연탄 | D53: 태안#9 | E53: 1050 | F53: 2024-03-09 | G53: 00:00:00 | H53: 2024-06-11 | I53: 00:00:00 | J53: =H53-F53+1 -> 95
B54: 한국중부발전(주) | C54: 유연탄 | D54: 보령#4 | E54: 500 | F54: 2024-04-01 | G54: 00:00:00 | H54: 2024-06-10 | I54: 00:00:00 | J54: =H54-F54+1 -> 71
B55: 한국중부발전(주) | C55: 유연탄 | D55: 보령#7 | E55: 500 | F55: 2024-05-31 | G55: 00:00:00 | H55: 2024-06-01 | I55: 00:00:00 | J55: =H55-F55+1 -> 2
B56: 한국중부발전(주) | C56: 유연탄 | D56: 보령#8 | E56: 500 | F56: 2024-06-01 | G56: 00:00:00 | H56: 2024-06-10 | I56: 00:00:00 | J56: =H56-F56+1 -> 10
B57: 한국중부발전(주) | C57: 유연탄 | D57: 신보령#1 | E57: 1019.029 | F57: 2024-05-30 | G57: 00:00:00 | H57: 2024-06-08 | I57: 00:00:00 | J57: =H57-F57+1 -> 10
B58: 한국중부발전(주) | C58: 유연탄 | D58: 신서천#1 | E58: 1018 | F58: 2024-04-17 | G58: 00:00:00 | H58: 2024-06-22 | I58: 00:00:00 | J58: =H58-F58+1 -> 67
B59: 한국수력원자력(주) | C59: 원자력 | D59: 고리#2 | E59: 650 | F59: 2023-04-08 | G59: 00:00:00 | H59: 2025-07-11 | I59: 00:00:00 | J59: =H59-F59+1 -> 826
B60: 한국수력원자력(주) | C60: 원자력 | D60: 신고리#2 | E60: 1000 | F60: 2024-05-02 | G60: 00:00:00 | H60: 2024-06-20 | I60: 23:59:00 | J60: =H60-F60+1 -> 50
B61: 한국수력원자력(주) | C61: 원자력 | D61: 신월성#1 | E61: 1000 | F61: 2024-06-07 | G61: 00:00:00 | H61: 2024-08-05 | I61: 23:59:00 | J61: =H61-F61+1 -> 60
B62: 한국수력원자력(주) | C62: 원자력 | D62: 월성#2 | E62: 700 | F62: 2024-05-28 | G62: 00:00:00 | H62: 2024-07-29 | I62: 00:00:00 | J62: =H62-F62+1 -> 63
B63: 한국수력원자력(주) | C63: 원자력 | D63: 월성#3 | E63: 700 | F63: 2024-05-01 | G63: 09:00:00 | H63: 2024-09-13 | I63: 23:59:00 | J63: =H63-F63+1 -> 136
B64: 한국수력원자력(주) | C64: 원자력 | D64: 월성#4 | E64: 700 | F64: 2024-04-20 | G64: 00:00:00 | H64: 2024-06-28 | I64: 23:59:00 | J64: =H64-F64+1 -> 70
B65: 한국수력원자력(주) | C65: 원자력 | D65: 한빛#1 | E65: 950 | F65: 2023-12-17 | G65: 00:00:00 | H65: 2024-07-05 | I65: 23:59:00 | J65: =H65-F65+1 -> 202
B66: 한국수력원자력(주) | C66: 원자력 | D66: 한빛#4 | E66: 1000 | F66: 2024-04-21 | G66: 00:00:00 | H66: 2024-06-18 | I66: 00:00:00 | J66: =H66-F66+1 -> 59
B67: GS EPS(주) | C67: LNG | D67: GS당진GT#4 | E67: 174.5 | F67: 2024-04-01 | G67: 00:00:00 | H67: 2024-06-25 | I67: 23:59:00 | J67: =H67-F67+1 -> 86
B68: GS EPS(주) | C68: LNG | D68: GS당진GT#7 | E68: 269.8 | F68: 2024-06-08 | G68: 00:00:00 | H68: 2024-07-18 | I68: 23:59:00 | J68: =H68-F68+1 -> 41
B69: 신평택발전(주) | C69: LNG | D69: 신평택GT#1 | E69: 290.2 | F69: 2024-05-27 | G69: 00:00:00 | H69: 2024-06-25 | I69: 00:00:00 | J69: =H69-F69+1 -> 30
B70: 신평택발전(주) | C70: LNG | D70: 신평택GT#2 | E70: 290.2 | F70: 2024-05-27 | G70: 00:00:00 | H70: 2024-06-25 | I70: 00:00:00 | J70: =H70-F70+1 -> 30
B71: 신평택발전(주) | C71: LNG | D71: 신평택ST#1 | E71: 282.9 | F71: 2024-05-27 | G71: 00:00:00 | H71: 2024-06-25 | I71: 00:00:00 | J71: =H71-F71+1 -> 30
B72: 씨지앤율촌전력(주) | C72: LNG | D72: 율촌GT#4 | E72: 289 | F72: 2024-06-01 | G72: 00:00:00 | H72: 2024-06-28 | I72: 00:00:00 | J72: =H72-F72+1 -> 28
B73: 안산도시개발(주) | C73: LNG | D73: 안산도시개발 | E73: 60 | F73: 2024-05-07 | G73: 00:00:00 | H73: 2024-06-01 | I73: 00:00:00 | J73: =H73-F73+1 -> 26
B74: 여주에너지서비스 주식회사 | C74: LNG | D74: 여주복합GT#2 | E74: 336.022 | F74: 2024-05-31 | G74: 00:00:00 | H74: 2024-06-22 | I74: 00:00:00 | J74: =H74-F74+1 -> 23
B75: 인천공항에너지(주) | C75: LNG | D75: 인천공항GT#2 | E75: 47 | F75: 2024-06-01 | G75: 09:00:00 | H75: 2024-06-01 | I75: 19:00:00 | J75: =H75-F75+1 -> 1
B76: 인천종합에너지(주) | C76: LNG | D76: 송도GT#1 | E76: 84.8 | F76: 2024-05-19 | G76: 08:00:00 | H76: 2024-06-09 | I76: 17:00:00 | J76: =H76-F76+1 -> 22
B77: 인천종합에너지(주) | C77: LNG | D77: 송도GT#2 | E77: 84.8 | F77: 2024-06-01 | G77: 08:00:00 | H77: 2024-06-01 | I77: 17:00:00 | J77: =H77-F77+1 -> 1
B78: 인천종합에너지(주) | C78: LNG | D78: 송도ST#1 | E78: 52.4 | F78: 2024-04-27 | G78: 00:00:00 | H78: 2024-06-09 | I78: 17:00:00 | J78: =H78-F78+1 -> 44
B79: 주식회사 포스코인터내셔널 | C79: LNG | D79: 포스코GT#10 | E79: 100 | F79: 2024-06-01 | G79: 00:00:00 | H79: 2024-06-03 | I79: 00:00:00 | J79: =H79-F79+1 -> 3
B80: 주식회사 포스코인터내셔널 | C80: LNG | D80: 포스코GT#17 | E80: 242.7 | F80: 2024-05-25 | G80: 00:00:00 | H80: 2024-06-21 | I80: 00:00:00 | J80: =H80-F80+1 -> 28
B81: 주식회사 포스코인터내셔널 | C81: LNG | D81: 포스코ST#7 | E81: 139.7 | F81: 2024-05-25 | G81: 00:00:00 | H81: 2024-06-21 | I81: 00:00:00 | J81: =H81-F81+1 -> 28
B82: 코스포영남파워 주식회사 | C82: LNG | D82: 영남파워GT#1 | E82: 292 | F82: 2024-06-01 | G82: 05:00:00 | H82: 2024-06-01 | I82: 22:00:00 | J82: =H82-F82+1 -> 1
B83: 코스포영남파워 주식회사 | C83: LNG | D83: 영남파워ST#1 | E83: 150.8 | F83: 2024-06-01 | G83: 05:00:00 | H83: 2024-06-01 | I83: 22:00:00 | J83: =H83-F83+1 -> 1
B84: 파주에너지서비스 주식회사 | C84: LNG | D84: 파주문산GT#1 | E84: 275.5 | F84: 2024-04-24 | G84: 00:00:00 | H84: 2024-06-02 | I84: 00:00:00 | J84: =H84-F84+1 -> 40
B85: 파주에너지서비스 주식회사 | C85: LNG | D85: 파주문산GT#1 | E85: 275.5 | F85: 2024-06-09 | G85: 00:00:00 | H85: 2024-06-10 | I85: 00:00:00 | J85: =H85-F85+1 -> 2
B86: 파주에너지서비스 주식회사 | C86: LNG | D86: 파주문산GT#2 | E86: 275.5 | F86: 2024-04-20 | G86: 00:00:00 | H86: 2024-06-06 | I86: 00:00:00 | J86: =H86-F86+1 -> 48
B87: 파주에너지서비스 주식회사 | C87: LNG | D87: 파주문산GT#2 | E87: 275.5 | F87: 2024-06-09 | G87: 00:00:00 | H87: 2024-06-10 | I87: 00:00:00 | J87: =H87-F87+1 -> 2
B88: 파주에너지서비스 주식회사 | C88: LNG | D88: 파주문산ST#1 | E88: 296.6 | F88: 2024-04-24 | G88: 00:00:00 | H88: 2024-06-02 | I88: 00:00:00 | J88: =H88-F88+1 -> 40
B89: 파주에너지서비스 주식회사 | C89: LNG | D89: 파주문산ST#1 | E89: 296.6 | F89: 2024-06-09 | G89: 00:00:00 | H89: 2024-06-10 | I89: 00:00:00 | J89: =H89-F89+1 -> 2
B90: 평택에너지서비스(주) | C90: LNG | D90: 오성GT#1 | E90: 183 | F90: 2024-06-08 | G90: 00:00:00 | H90: 2024-06-10 | I90: 00:00:00 | J90: =H90-F90+1 -> 3
B91: 포천파워(주) | C91: LNG | D91: 포천GT#1 | E91: 240.5 | F91: 2024-05-17 | G91: 08:01:00 | H91: 2024-06-02 | I91: 00:00:00 | J91: =H91-F91+1 -> 17
B92: 포천파워(주) | C92: LNG | D92: 포천GT#1 | E92: 240.5 | F92: 2024-06-03 | G92: 07:01:00 | H92: 2024-06-03 | I92: 21:00:00 | J92: =H92-F92+1 -> 1
B93: 포천파워(주) | C93: LNG | D93: 포천GT#2 | E93: 240.5 | F93: 2024-05-17 | G93: 08:01:00 | H93: 2024-06-02 | I93: 02:00:00 | J93: =H93-F93+1 -> 17
B94: 포천파워(주) | C94: LNG | D94: 포천GT#2 | E94: 240.5 | F94: 2024-06-03 | G94: 07:01:00 | H94: 2024-06-03 | I94: 21:00:00 | J94: =H94-F94+1 -> 1
B95: 포천파워(주) | C95: LNG | D95: 포천GT#3 | E95: 240.5 | F95: 2024-06-01 | G95: 09:01:00 | H95: 2024-06-03 | I95: 00:00:00 | J95: =H95-F95+1 -> 3
B96: 포천파워(주) | C96: LNG | D96: 포천GT#4 | E96: 240.5 | F96: 2024-06-01 | G96: 09:01:00 | H96: 2024-06-03 | I96: 00:00:00 | J96: =H96-F96+1 -> 3
B97: 포천파워(주) | C97: LNG | D97: 포천ST#1 | E97: 244 | F97: 2024-05-17 | G97: 08:01:00 | H97: 2024-06-02 | I97: 00:00:00 | J97: =H97-F97+1 -> 17
B98: 포천파워(주) | C98: LNG | D98: 포천ST#1 | E98: 244 | F98: 2024-06-03 | G98: 07:01:00 | H98: 2024-06-03 | I98: 21:00:00 | J98: =H98-F98+1 -> 1
B99: 포천파워(주) | C99: LNG | D99: 포천ST#2 | E99: 244 | F99: 2024-06-01 | G99: 09:01:00 | H99: 2024-06-03 | I99: 00:00:00 | J99: =H99-F99+1 -> 3
B100: 한국남동발전(주) | C100: LNG | D100: 분당GT#2 | E100: 77.758 | F100: 2024-05-07 | G100: 00:00:00 | H100: 2024-06-28 | I100: 00:00:00 | J100: =H100-F100+1 -> 53
B101: 한국남부발전(주) | C101: LNG | D101: 남제주복합GT#1 | E101: 51.057 | F101: 2024-06-03 | G101: 00:00:00 | H101: 2024-06-05 | I101: 00:00:00 | J101: =H101-F101+1 -> 3
B102: 한국남부발전(주) | C102: LNG | D102: 남제주복합GT#2 | E102: 51.057 | F102: 2024-06-04 | G102: 00:00:00 | H102: 2024-06-06 | I102: 00:00:00 | J102: =H102-F102+1 -> 3
B103: 한국남부발전(주) | C103: LNG | D103: 남제주복합ST#1 | E103: 56.682 | F103: 2024-06-04 | G103: 00:00:00 | H103: 2024-06-05 | I103: 00:00:00 | J103: =H103-F103+1 -> 2
B104: 한국남부발전(주) | C104: LNG | D104: 부산GT#5 | E104: 150 | F104: 2024-06-03 | G104: 00:00:00 | H104: 2024-06-06 | I104: 00:00:00 | J104: =H104-F104+1 -> 4
B105: 한국남부발전(주) | C105: LNG | D105: 부산GT#6 | E105: 150 | F105: 2024-06-03 | G105: 00:00:00 | H105: 2024-06-06 | I105: 00:00:00 | J105: =H105-F105+1 -> 4
B106: 한국남부발전(주) | C106: LNG | D106: 부산ST#3 | E106: 150 | F106: 2024-06-03 | G106: 00:00:00 | H106: 2024-06-06 | I106: 00:00:00 | J106: =H106-F106+1 -> 4
B107: 한국남부발전(주) | C107: LNG | D107: 신인천GT#1 | E107: 150 | F107: 2024-05-29 | G107: 00:00:00 | H107: 2024-06-22 | I107: 00:00:00 | J107: =H107-F107+1 -> 25
B108: 한국남부발전(주) | C108: LNG | D108: 신인천GT#2 | E108: 150 | F108: 2024-06-01 | G108: 00:00:00 | H108: 2024-06-17 | I108: 00:00:00 | J108: =H108-F108+1 -> 17
B109: 한국남부발전(주) | C109: LNG | D109: 신인천ST#1 | E109: 150 | F109: 2024-06-01 | G109: 00:00:00 | H109: 2024-06-17 | I109: 00:00:00 | J109: =H109-F109+1 -> 17
B110: 한국동서발전(주) | C110: LNG | D110: 울산GT#3 | E110: 150 | F110: 2024-05-28 | G110: 09:00:00 | H110: 2024-06-03 | I110: 00:00:00 | J110: =H110-F110+1 -> 7
B111: 한국동서발전(주) | C111: LNG | D111: 울산GT#4 | E111: 150 | F111: 2024-05-28 | G111: 09:00:00 | H111: 2024-06-03 | I111: 00:00:00 | J111: =H111-F111+1 -> 7
B112: 한국동서발전(주) | C112: LNG | D112: 울산GT#5 | E112: 150 | F112: 2024-05-28 | G112: 09:00:00 | H112: 2024-06-03 | I112: 00:00:00 | J112: =H112-F112+1 -> 7
B113: 한국동서발전(주) | C113: LNG | D113: 울산GT#6 | E113: 150 | F113: 2024-05-28 | G113: 09:00:00 | H113: 2024-06-03 | I113: 00:00:00 | J113: =H113-F113+1 -> 7
B114: 한국동서발전(주) | C114: LNG | D114: 울산ST#2 | E114: 150 | F114: 2024-05-28 | G114: 09:00:00 | H114: 2024-06-03 | I114: 00:00:00 | J114: =H114-F114+1 -> 7
B115: 한국동서발전(주) | C115: LNG | D115: 울산ST#3 | E115: 150 | F115: 2024-05-28 | G115: 09:00:00 | H115: 2024-06-03 | I115: 00:00:00 | J115: =H115-F115+1 -> 7
B116: 한국동서발전(주) | C116: LNG | D116: 일산GT#5 | E116: 100 | F116: 2024-05-29 | G116: 00:00:00 | H116: 2024-06-22 | I116: 00:00:00 | J116: =H116-F116+1 -> 25
B117: 한국서부발전(주) | C117: LNG | D117: 김포GT#1 | E117: 229.62 | F117: 2024-06-01 | G117: 00:00:00 | H117: 2024-06-03 | I117: 00:00:00 | J117: =H117-F117+1 -> 3
B118: 한국서부발전(주) | C118: LNG | D118: 김포ST#1 | E118: 120.84 | F118: 2024-06-01 | G118: 00:00:00 | H118: 2024-06-03 | I118: 00:00:00 | J118: =H118-F118+1 -> 3
B119: 한국서부발전(주) | C119: LNG | D119: 서인천GT#2 | E119: 150 | F119: 2024-06-05 | G119: 00:00:00 | H119: 2024-06-09 | I119: 00:00:00 | J119: =H119-F119+1 -> 5
B120: 한국서부발전(주) | C120: LNG | D120: 서인천GT#3 | E120: 150 | F120: 2024-06-02 | G120: 00:00:00 | H120: 2024-06-07 | I120: 00:00:00 | J120: =H120-F120+1 -> 6
B121: 한국서부발전(주) | C121: LNG | D121: 서인천GT#4 | E121: 150 | F121: 2024-06-02 | G121: 00:00:00 | H121: 2024-06-06 | I121: 00:00:00 | J121: =H121-F121+1 -> 5
B122: 한국서부발전(주) | C122: LNG | D122: 서인천GT#6 | E122: 150 | F122: 2024-04-29 | G122: 00:00:00 | H122: 2024-07-02 | I122: 00:00:00 | J122: =H122-F122+1 -> 65
B123: 한국서부발전(주) | C123: LNG | D123: 서인천ST#2 | E123: 75 | F123: 2024-06-05 | G123: 00:00:00 | H123: 2024-06-09 | I123: 00:00:00 | J123: =H123-F123+1 -> 5
B124: 한국서부발전(주) | C124: LNG | D124: 서인천ST#3 | E124: 75 | F124: 2024-06-02 | G124: 00:00:00 | H124: 2024-06-07 | I124: 00:00:00 | J124: =H124-F124+1 -> 6
B125: 한국서부발전(주) | C125: LNG | D125: 서인천ST#4 | E125: 75 | F125: 2024-06-02 | G125: 00:00:00 | H125: 2024-06-06 | I125: 00:00:00 | J125: =H125-F125+1 -> 5
B126: 한국서부발전(주) | C126: LNG | D126: 서인천ST#6 | E126: 75 | F126: 2024-04-29 | G126: 00:00:00 | H126: 2024-07-02 | I126: 00:00:00 | J126: =H126-F126+1 -> 65
B127: 한국서부발전(주) | C127: LNG | D127: 평택#3 | E127: 350 | F127: 2024-06-03 | G127: 00:00:00 | H127: 2024-06-10 | I127: 00:00:00 | J127: =H127-F127+1 -> 8
B128: 한국중부발전(주) | C128: LNG | D128: 보령GT#3 | E128: 150 | F128: 2024-05-27 | G128: 00:00:00 | H128: 2024-06-03 | I128: 13:00:00 | J128: =H128-F128+1 -> 8
B129: 한국중부발전(주) | C129: LNG | D129: 보령GT#4 | E129: 150 | F129: 2024-05-27 | G129: 00:00:00 | H129: 2024-06-03 | I129: 13:00:00 | J129: =H129-F129+1 -> 8
B130: 한국중부발전(주) | C130: LNG | D130: 보령GT#5 | E130: 150 | F130: 2024-05-31 | G130: 00:00:00 | H130: 2024-06-03 | I130: 13:00:00 | J130: =H130-F130+1 -> 4
B131: 한국중부발전(주) | C131: LNG | D131: 보령GT#6 | E131: 150 | F131: 2024-05-31 | G131: 00:00:00 | H131: 2024-06-03 | I131: 13:00:00 | J131: =H131-F131+1 -> 4
B132: 한국중부발전(주) | C132: LNG | D132: 보령ST#2 | E132: 150 | F132: 2024-05-27 | G132: 00:00:00 | H132: 2024-06-03 | I132: 13:00:00 | J132: =H132-F132+1 -> 8
B133: 한국중부발전(주) | C133: LNG | D133: 보령ST#3 | E133: 150 | F133: 2024-05-31 | G133: 00:00:00 | H133: 2024-06-03 | I133: 13:00:00 | J133: =H133-F133+1 -> 4
B134: 한국중부발전(주) | C134: LNG | D134: 세종GT#1 | E134: 167.104 | F134: 2024-05-10 | G134: 00:00:00 | H134: 2024-06-24 | I134: 00:00:00 | J134: =H134-F134+1 -> 46
B135: 한국중부발전(주) | C135: LNG | D135: 세종GT#2 | E135: 167.104 | F135: 2024-05-10 | G135: 00:00:00 | H135: 2024-06-24 | I135: 00:00:00 | J135: =H135-F135+1 -> 46
B136: 한국중부발전(주) | C136: LNG | D136: 세종ST#1 | E136: 196.233 | F136: 2024-05-10 | G136: 00:00:00 | H136: 2024-06-24 | I136: 00:00:00 | J136: =H136-F136+1 -> 46
B137: 한국중부발전(주) | C137: LNG | D137: 인천GT#2 | E137: 160.729 | F137: 2024-05-13 | G137: 00:00:00 | H137: 2024-06-03 | I137: 00:00:00 | J137: =H137-F137+1 -> 22
B138: 한국중부발전(주) | C138: LNG | D138: 인천GT#5 | E138: 150 | F138: 2024-06-02 | G138: 00:00:00 | H138: 2024-06-06 | I138: 00:00:00 | J138: =H138-F138+1 -> 5
B139: 한국중부발전(주) | C139: LNG | D139: 인천GT#6 | E139: 150 | F139: 2024-04-25 | G139: 00:00:00 | H139: 2024-07-02 | I139: 00:00:00 | J139: =H139-F139+1 -> 69
B140: 한국중부발전(주) | C140: LNG | D140: 인천ST#3 | E140: 150 | F140: 2024-06-02 | G140: 00:00:00 | H140: 2024-06-06 | I140: 00:00:00 | J140: =H140-F140+1 -> 5
B141: 한국지역난방공사 | C141: LNG | D141: 광교GT#1 | E141: 102.588 | F141: 2024-04-29 | G141: 00:00:00 | H141: 2024-06-22 | I141: 00:00:00 | J141: =H141-F141+1 -> 55
B142: 한국지역난방공사 | C142: LNG | D142: 광교ST#1 | E142: 42.2 | F142: 2024-04-29 | G142: 00:00:00 | H142: 2024-06-22 | I142: 00:00:00 | J142: =H142-F142+1 -> 55
B143: 한국지역난방공사 | C143: LNG | D143: 양산GT#1 | E143: 78.012 | F143: 2024-05-01 | G143: 00:00:00 | H143: 2024-06-09 | I143: 00:00:00 | J143: =H143-F143+1 -> 40
B144: 한국지역난방공사 | C144: LNG | D144: 양산ST#1 | E144: 40.96 | F144: 2024-05-01 | G144: 00:00:00 | H144: 2024-06-09 | I144: 00:00:00 | J144: =H144-F144+1 -> 40
B145: 한국지역난방공사 | C145: LNG | D145: 파주GT#1 | E145: 163.4 | F145: 2024-04-24 | G145: 00:00:00 | H145: 2024-06-21 | I145: 00:00:00 | J145: =H145-F145+1 -> 59
B146: 한국지역난방공사 | C146: LNG | D146: 파주GT#2 | E146: 163.4 | F146: 2024-04-24 | G146: 00:00:00 | H146: 2024-06-21 | I146: 00:00:00 | J146: =H146-F146+1 -> 59
B147: 한국지역난방공사 | C147: LNG | D147: 파주ST#1 | E147: 188.7 | F147: 2024-04-24 | G147: 00:00:00 | H147: 2024-06-21 | I147: 00:00:00 | J147: =H147-F147+1 -> 59
B148: 한국지역난방공사 | C148: LNG | D148: 판교GT#1 | E148: 77.863 | F148: 2024-05-07 | G148: 00:00:00 | H148: 2024-06-22 | I148: 00:00:00 | J148: =H148-F148+1 -> 47
B149: 한국지역난방공사 | C149: LNG | D149: 판교ST#1 | E149: 68.451 | F149: 2024-05-07 | G149: 00:00:00 | H149: 2024-06-22 | I149: 00:00:00 | J149: =H149-F149+1 -> 47
B150: 한국지역난방공사 | C150: LNG | D150: 화성GT#1 | E150: 160.8 | F150: 2024-05-09 | G150: 00:00:00 | H150: 2024-06-01 | I150: 00:00:00 | J150: =H150-F150+1 -> 24
B151: 한국지역난방공사 | C151: LNG | D151: 화성GT#2 | E151: 160.8 | F151: 2024-05-09 | G151: 00:00:00 | H151: 2024-06-01 | I151: 00:00:00 | J151: =H151-F151+1 -> 24
B152: 한국지역난방공사 | C152: LNG | D152: 화성ST#1 | E152: 190.2 | F152: 2024-05-09 | G152: 00:00:00 | H152: 2024-06-01 | I152: 00:00:00 | J152: =H152-F152+1 -> 24
B153: 한국서부발전(주) | C153: IGCC | D153: 태안IGCC GT#1 | E153: 210.64 | F153: 2024-04-11 | G153: 00:00:00 | H153: 2024-06-15 | I153: 00:00:00 | J153: =H153-F153+1 -> 66
B154: 한국서부발전(주) | C154: IGCC | D154: 태안IGCC ST#1 | E154: 135.69 | F154: 2024-04-11 | G154: 00:00:00 | H154: 2024-06-15 | I154: 00:00:00 | J154: =H154-F154+1 -> 66
